[Event "44th Chess Olympiad Women 2022"]
[Site "Chennai"]
[Date "2022.08.05"]
[Round "7.9"]
[White "Miranda Llanes, Yerisbel"]
[Black "Bayarmaa, Bayarjargal"]
[Result "1/2-1/2"]
[WhiteElo "2347"]
[BlackElo "2171"]
[Annotator "TA"]
[PlyCount "184"]
[EventDate "2022.??.??"]
[TimeControl "60"]

{[%evp 13,184,15,57,-13,-9,-22,-15,-20,-16,-16,-3,-20,-8,-16,0,0,-1,-32,-23,
-53,-58,-53,-54,-59,-32,-52,0,-62,0,0,0,0,0,-13,0,0,0,-4,0,-4,0,-78,-75,-72,
-72,-88,-58,-105,-83,-79,-64,-86,-77,-75,-60,-67,-53,-56,-50,-75,-83,-92,-42,
-43,-45,-55,-51,-50,-43,-43,-10,-43,-43,-43,-43,-43,-47,-59,-59,-59,-59,-59,
-59,-66,-66,-75,-51,-54,-55,-53,-37,-53,-53,-47,-34,-99,-57,-99,-49,-64,-69,
-128,-87,-77,-69,-111,-97,-112,-87,-87,-92,-70,-77,-91,-83,-72,-67,-69,-4,-9,0,
0,0,-10,0,0,0,0,12,0,0,0,0,0,0,0,72,70,72,69,78,40,114,50,156,129,139,87,78,20,
32,0,8,0,0,0,8,0,0,0,8,0,25,0,0,0,66,66,66,66,66,66,66]} 1. d4 {[%emt 0:00:16]}
Nf6 {[%emt 0:00:06]} 2. c4 {[%emt 0:00:07]} g6 {[%emt 0:00:05]} 3. Nc3 {
[%emt 0:00:09]} Bg7 {[%emt 0:00:06]} 4. e4 {[%emt 0:00:10]} d6 {[%emt 0:00:11]}
5. Nf3 {[%emt 0:00:18]} O-O {[%emt 0:00:12]} 6. Be2 {[%emt 0:00:09]} e5 {
[%emt 0:00:27]} 7. Be3 {[%emt 0:00:15]} Bg4 {[%emt 0:00:26]} 8. h3 {[%emt 0:00:
00] E91: King's Indian: Classical: 6 Be2, unusual replies including 6...c5 and
6...Bg4.} (8. d5 $14) 8... Bxf3 $11 {[%emt 0:00:22]} 9. Bxf3 {[%emt 0:00:07]}
exd4 {[%emt 0:00:26]} 10. Bxd4 {[%emt 0:00:45] The position is equal.} Nc6 {
[%emt 0:00:08]} 11. Be3 {[%emt 0:00:26]} Re8 {[%emt 0:00:50]} 12. O-O {[%emt 0:
00:00]} Nd7 {[%emt 0:00:19]} 13. Qd2 {[%emt 0:07:46] [#]} Bxc3 $146 {[%emt 0:
00:00]} ({Predecessor:} 13... Nc5 14. Rae1 a5 15. Bg5 Bxc3 16. bxc3 f6 17. Bh4
Ne5 18. Bd1 g5 19. Bg3 Kh8 {0-1 (89) Mecking,H-Matulovic,M Palma de Mallorca
1970}) 14. Qxc3 {[%emt 0:01:20]} Qf6 {[%emt 0:00:17]} 15. Qc2 {[%emt 0:12:38]}
Nc5 {[%emt 0:07:00]} 16. Rab1 {[%emt 0:01:42]} a5 {[%emt 0:07:25]} 17. a3 {
[%emt 0:03:32]} a4 {[%emt 0:02:09]} 18. Rfd1 {[%emt 0:01:39] Prevents Nd4.} Qe7
{[%emt 0:18:40]} 19. Re1 {[%emt 0:07:03]} Qf6 {[%emt 0:07:14]} ({Much worse is
} 19... Nxe4 20. Bf4 f5 21. Rbd1 $11) (19... Qh4 $15) 20. Rbd1 {[%emt 0:08:08]}
(20. Red1 $11) 20... Nb3 {[%emt 0:02:23]} (20... Ra6 $15) 21. Be2 {[%emt 0:00:
00]} Ncd4 {[%emt 0:03:34]} 22. Qd3 {[%emt 0:00:56][%cal Re3d4]} Ne6 {[%emt 0:
00:00] Pair of Knights!} 23. Qc2 {[%emt 0:02:06]} Ned4 {[%emt 0:08:42]} 24. Qd3
{[%emt 0:00:42][%cal Re3d4]} Ne6 {[%emt 0:03:33]} 25. Qb1 {[%emt 0:00:46]} h5 {
[%emt 0:03:15]} 26. Bf1 {[%emt 0:01:33]} h4 {[%emt 0:01:15]} 27. Bd2 {[%emt 0:
00:00]} (27. Be2 $11 {remains equal.}) 27... Nxd2 $17 {[%emt 0:03:58]} 28. Rxd2
{[%emt 0:00:02]} Nc5 {[%emt 0:01:41]} 29. Rd5 {[%emt 0:06:43][%cal Ye4e5]} b6 {
[%emt 0:03:01]} 30. Qc2 {[%emt 0:02:21]} (30. Rdd1 $15) 30... Re6 {[%emt 0:00:
00]} 31. f3 {[%emt 0:01:54]} Qf4 {[%emt 0:01:09][%cal Yf7f5]} 32. Red1 {
[%emt 0:01:20]} Rae8 {[%emt 0:05:45]} 33. Qd2 {[%emt 0:02:27]} Qxd2 {[%emt 0:
00:00]} 34. R5xd2 {[%emt 0:00:48]} Rf6 {[%emt 0:00:46]} 35. Bd3 {[%emt 0:01:32]
} Kg7 {[%emt 0:00:46]} 36. Bc2 {[%emt 0:01:06]} Rf4 {[%emt 0:03:42]} 37. Rd4 {
[%emt 0:04:43] [#]} g5 {[%emt 0:02:01]} (37... f5 $1 $17) 38. Kf2 {[%emt 0:00:
00]} Kh6 {[%emt 0:01:22]} 39. R1d2 {[%emt 0:03:26]} Re5 {[%emt 0:00:21]} 40.
Rd1 {[%emt 0:01:06]} Kg7 {[%emt 0:01:15]} 41. R1d2 {[%emt 0:31:25]} Kf6 {
[%emt 0:31:06]} 42. Rd1 {[%emt 0:02:29]} Ke7 {[%emt 0:00:00]} 43. R1d2 {
[%emt 0:00:00]} Rf6 {[%emt 0:00:00]} 44. Rd1 {[%emt 0:00:00]} Rg6 {[%emt 0:00:
00]} 45. Rd5 {[%emt 0:00:00]} Rg8 {[%emt 0:00:00]} 46. R5d2 {[%emt 0:00:00]}
Ra8 {[%emt 0:00:00]} 47. Rc1 {[%emt 0:00:00]} Ne6 {[%emt 0:00:00]} 48. Rcd1 {
[%emt 0:00:00]} Nf4 {[%emt 0:00:00]} 49. Bd3 {[%emt 0:00:00]} b5 {[%emt 0:00:
00]} 50. Bf1 {[%emt 0:00:00]} bxc4 {[%emt 0:00:00][%cal Yc4c3]} 51. Rc1 {
[%emt 0:00:00]} Rb5 {[%emt 0:00:00]} 52. Bxc4 {[%emt 0:02:35]} Rc5 {[%emt 0:00:
00]} 53. Rcc2 {[%emt 0:00:47]} Rb8 {[%emt 0:00:00]} 54. Ke3 {[%emt 0:01:03]} (
54. g3 $15 hxg3+ 55. Kxg3) 54... f6 {[%emt 0:02:06]} 55. Kd4 {[%emt 0:01:06]}
Ra5 {[%emt 0:00:41]} ({Black should play} 55... c6 $17) 56. Ke3 {[%emt 0:00:55]
} c6 {[%emt 0:00:25]} 57. Rc3 {[%emt 0:01:18]} (57. Bf1 $15) 57... Rb6 {
[%emt 0:01:08]} 58. Kf2 {[%emt 0:01:23]} d5 {[%emt 0:01:08]} 59. exd5 {[%emt 0:
00:00]} cxd5 {[%emt 0:00:04]} 60. Bf1 {[%emt 0:00:30]} Ra7 {[%emt 0:00:17]} 61.
g3 {[%emt 0:01:20]} hxg3+ {[%emt 0:00:41]} 62. Kxg3 {[%emt 0:00:01]} Rab7 {
[%emt 0:02:40]} 63. Rcc2 {[%emt 0:00:41]} Kd6 {[%emt 0:00:52]} 64. h4 {[%emt 0:
00:00]} Ke5 {[%emt 0:00:45] [#] Hoping for ...gxh4+.} 65. hxg5 {[%emt 0:00:41]}
Rg7 {[%emt 0:00:43]} (65... fxg5 $15 66. Rh2 Kf5) 66. Rc8 $11 {[%emt 0:01:46]}
Rxg5+ {[%emt 0:00:19]} 67. Kf2 {[%emt 0:00:12]} Rh5 {[%emt 0:00:05]} 68. Kg3 {
[%emt 0:01:08] Prevents Rh2.} Rg5+ {[%emt 0:01:26]} 69. Kf2 {[%emt 0:00:03]}
Ne6 {[%emt 0:00:49]} 70. Ra8 {[%emt 0:00:28]} Nc5 {[%emt 0:00:11]} 71. Re8+ {
[%emt 0:00:38]} Kd6 $1 {[%emt 0:00:06]} 72. Rd8+ {[%emt 0:00:13]} Kc6 {[%emt 0:
00:00]} 73. Rc2 {[%emt 0:00:18] aiming for Rc8+.} Kc7 {[%emt 0:00:22] Against
Rc8+} 74. Ra8 {[%emt 0:00:52]} Kb7 {[%emt 0:00:16]} (74... Rc6 $11 75. Rd2 Nb3)
75. Ra5 $16 {[%emt 0:00:21]} Ne6 {[%emt 0:01:13]} 76. Rxa4 {[%emt 0:00:08]} Rh5
{[%emt 0:00:13] Against Rh4} 77. Bg2 {[%emt 0:00:47]} Rb5 {[%emt 0:01:18]} (
77... Rb3 $1 $14) 78. Rg4 {[%emt 0:00:23]} (78. Re2 $16 Nc7 79. Rg4) 78... Rh7
{[%emt 0:00:13]} (78... Rb3 $1 $14) 79. b4 {[%emt 0:00:35]} f5 {[%emt 0:00:28]}
80. Rg6 {[%emt 0:00:37]} (80. Rg8 $142) 80... Nf4 {[%emt 0:00:22]} 81. Rg5 {
[%emt 0:00:35]} ({White should try} 81. Rf6 $16) 81... d4 $11 {[%emt 0:00:18]}
82. Rd2 {[%emt 0:00:38]} (82. Rc4 $5 {[%cal Rc4d4]}) 82... Rd5 {[%emt 0:00:28]}
83. Kg3 {[%emt 0:00:23]} Nh5+ {[%emt 0:00:09]} 84. Kf2 {[%emt 0:00:42][%cal
Yf3f4] Strongly threatening f4!} Nf4 {[%emt 0:00:37]} 85. Kg3 {[%emt 0:00:42]}
(85. Rd1 {looks sharper.} Rc7 86. Bf1 d3 87. Ke3) 85... Nxg2 {[%emt 0:00:20]}
86. Kxg2 {[%emt 0:00:17] Endgame KRR-KRR} Rc7 {[%emt 0:00:17]} 87. Kf2 {
[%emt 0:00:33]} Rc3 {[%emt 0:00:24]} 88. Rg1 {[%emt 0:00:30]} Rxa3 {[%emt 0:00:
23]} 89. Rgd1 {[%emt 0:00:05]} d3 {[%emt 0:01:49]} (89... f4 $1 $11) 90. Ke3
$14 {[%emt 0:00:37][%cal Rd2d3] White is slightly better.} Rb3 {[%emt 0:00:39]}
91. Rxd3 {[%emt 0:00:28]} Rdxd3+ {[%emt 0:00:11]} 92. Rxd3 {[%emt 0:00:01]}
Rxb4 {[%emt 0:01:25] Weighted Error Value: White=0.17 (very precise) /Black=0.
11 (very precise)} 1/2-1/2

[Event "44th Chess Olympiad Women 2022"]
[Site "Chennai"]
[Date "2022.08.05"]
[Round "7.9"]
[White "Munkhzul, Turmunkh"]
[Black "Arribas Robaina, Maritza"]
[Result "1-0"]
[WhiteElo "2277"]
[BlackElo "2239"]
[Annotator "NA RC"]
[PlyCount "127"]
[EventDate "2022.??.??"]
[TimeControl "60"]

1. d4 {[%emt 0:00:05]} Nf6 {[%emt 0:00:11]} 2. Bf4 {[%emt 0:00:22]} d6 {
[%emt 0:01:04]} 3. e3 {[%emt 0:00:23]} g6 {[%emt 0:01:03]} 4. Nc3 {[%emt 0:00:
00]} Bg7 {[%emt 0:01:43]} 5. h4 {[%emt 0:00:30]} Nbd7 {[%emt 0:02:38]} 6. g4 {
[%emt 0:02:34]} e5 {[%emt 0:01:06]} 7. dxe5 {[%emt 0:00:49]} dxe5 {[%emt 0:00:
00]} 8. Bg3 {[%emt 0:00:55]} c6 {[%emt 0:00:51]} 9. Be2 {[%emt 0:02:34]} Qa5 {
[%emt 0:01:06]} 10. Qd2 {[%emt 0:06:33]} Nd5 {[%emt 0:02:03]} 11. Ne4 {[%emt 0:
00:00]} Qxd2+ {[%emt 0:04:17]} 12. Nxd2 {[%emt 0:00:50]} Nb4 {[%emt 0:07:58]}
13. Kd1 {[%emt 0:01:52]} Nb6 {[%emt 0:03:26]} 14. e4 {[%emt 0:09:16]} a5 {
[%emt 0:04:55]} 15. c3 {[%emt 0:04:08]} Na6 {[%emt 0:00:07]} 16. f3 {[%emt 0:
00:00]} Be6 {[%emt 0:03:24]} 17. Bf2 {[%emt 0:03:37]} Nd7 {[%emt 0:03:39]} 18.
Bc4 {[%emt 0:01:46]} Nac5 {[%emt 0:08:47]} 19. Bxe6 {[%emt 0:01:35]} Nxe6 {
[%emt 0:00:18]} 20. Ne2 {[%emt 0:01:40]} h5 {[%emt 0:02:57]} 21. gxh5 {[%emt 0:
00:00]} Rxh5 {[%emt 0:01:24]} 22. Kc2 {[%emt 0:04:58]} Bf6 {[%emt 0:09:43]} 23.
Nc4 {[%emt 0:02:56]} Be7 {[%emt 0:07:00]} 24. Rad1 {[%emt 0:00:40]} Ra6 {
[%emt 0:05:49]} 25. Ng3 {[%emt 0:02:14]} Rh8 {[%emt 0:05:11]} 26. h5 {[%emt 0:
00:00]} gxh5 {[%emt 0:00:05]} 27. Nf5 {[%emt 0:01:23]} b5 {[%emt 0:01:56]} 28.
Ncd6+ {[%emt 0:01:08]} Bxd6 {[%emt 0:01:15]} 29. Nxd6+ {[%emt 0:00:20]} Ke7 {
[%emt 0:02:56]} 30. Bh4+ {[%emt 0:02:01]} f6 {[%emt 0:01:46]} 31. Nf5+ {
[%emt 0:00:31]} Ke8 {[%emt 0:00:32]} 32. Rd6 {[%emt 0:00:43]} Ng5 {[%emt 0:00:
00]} 33. Ng7+ {[%emt 0:05:59]} Ke7 {[%emt 0:00:12]} 34. Rhd1 {[%emt 0:02:16]}
Nf8 {[%emt 0:02:25]} 35. Nf5+ {[%emt 0:05:12]} Kf7 {[%emt 0:00:14]} 36. Rg1 {
[%emt 0:01:16]} Nge6 {[%emt 0:01:55]} 37. Rd8 {[%emt 0:05:24]} Ra7 {[%emt 0:00:
00]} 38. Rc8 {[%emt 0:00:58]} Rd7 {[%emt 0:01:29]} 39. Rxc6 {[%emt 0:00:41]}
Nh7 {[%emt 0:05:11]} 40. Nh6+ {[%emt 0:03:31]} Ke7 {[%emt 0:00:11]} 41. Rg6 {
[%emt 0:32:35]} Rhd8 {[%emt 0:33:35]} 42. Nf5+ {[%emt 0:00:00]} Kf7 {[%emt 0:
00:00]} 43. Rh6 {[%emt 0:00:00]} Rd2+ {[%emt 0:00:00]} 44. Kb3 {[%emt 0:00:00]}
a4+ {[%emt 0:00:00]} 45. Ka3 {[%emt 0:00:00]} b4+ {[%emt 0:00:00]} 46. cxb4 {
[%emt 0:00:00]} R2d3+ {[%emt 0:00:00]} 47. Kxa4 {[%emt 0:00:00]} Ra8+ {[%emt 0:
00:00]} 48. Kb5 {[%emt 0:00:00]} Nef8 {[%emt 0:00:00]} 49. Rc7+ {[%emt 0:00:00]
} Ke8 {[%emt 0:00:00]} 50. Rhxh7 {[%emt 0:00:00]} Nxh7 {[%emt 0:00:00]} 51.
Rxh7 {[%emt 0:00:00]} Rxa2 {[%emt 0:00:00]} 52. Bxf6 {[%emt 0:00:00]} Rxb2 {
[%emt 0:00:00]} 53. Re7+ {[%emt 0:00:00]} Kf8 {[%emt 0:00:00]} 54. Bg7+ {
[%emt 0:00:00]} Kg8 {[%emt 0:00:00]} 55. Nh6+ {[%emt 0:00:00]} Kh7 {[%emt 0:00:
00]} 56. Bxe5+ {[%emt 0:00:00]} Kxh6 {[%emt 0:00:00]} 57. Bxb2 {[%emt 0:00:00]}
Rxf3 {[%emt 0:00:00]} 58. Re8 {[%emt 0:00:00]} h4 {[%emt 0:00:00]} 59. Be5 {
[%emt 0:00:00]} h3 {[%emt 0:00:00]} 60. Kc6 {[%emt 0:00:00]} Kg5 {[%emt 0:00:
00]} 61. b5 {[%emt 0:00:00]} Rf2 {[%emt 0:00:00]} 62. Rg8+ {[%emt 0:00:00]} Kh5
{[%emt 0:00:00]} 63. b6 {[%emt 0:00:00]} Rc2+ {[%emt 0:00:00]} 64. Kd5 {
[%emt 0:00:00]} 1-0

[Event "44th Chess Olympiad Women 2022"]
[Site "Chennai"]
[Date "2022.08.05"]
[Round "7.10"]
[White "Hakimifard, Ghazal"]
[Black "Nandhidhaa, P V.."]
[Result "0-1"]
[WhiteElo "2296"]
[BlackElo "2312"]
[Annotator "TA"]
[PlyCount "102"]
[EventDate "2022.??.??"]
[TimeControl "60"]

{[%evp 26,102,0,-6,-12,-14,-9,-16,-9,-30,12,0,33,0,0,0,7,17,10,18,0,0,10,14,12,
-9,31,22,24,35,66,33,37,0,0,-35,-20,-32,-34,-39,-39,-97,-97,-272,-157,-160,
-150,-290,-139,-150,-135,-139,-130,-445,-257,-277,-272,-293,-298,-328,-291,
-367,-368,-471,-441,-475,-443,-566,-582,-545,-521,-719,-710,-1168,-1170,-1109,
-1109,-907,-770]} 1. e4 {[%emt 0:00:04]} c5 {[%emt 0:00:57]} 2. Nf3 {[%emt 0:
00:00]} e6 {[%emt 0:00:06]} 3. d4 {[%emt 0:00:05]} cxd4 {[%emt 0:00:04]} 4.
Nxd4 {[%emt 0:00:05]} Nc6 {[%emt 0:00:05]} 5. Nc3 {[%emt 0:00:06]} Qc7 {
[%emt 0:00:19]} 6. Be3 {[%emt 0:00:12]} Nf6 {[%emt 0:00:56]} 7. Be2 {[%emt 0:
00:00]} Be7 {[%emt 0:00:29]} 8. O-O {[%emt 0:01:23]} O-O {[%emt 0:00:38]} 9.
Kh1 {[%emt 0:04:17]} d6 {[%emt 0:00:36]} 10. f4 {[%emt 0:00:08]} Nxd4 {[%emt 0:
00:00]} 11. Bxd4 {[%emt 0:07:22]} e5 {[%emt 0:01:35]} 12. Be3 {[%emt 0:00:32]}
a6 {[%emt 0:00:19] is the legacy move (12...exf4).} 13. a4 {[%emt 0:03:30]}
exf4 {[%emt 0:00:44]} 14. Rxf4 {[%emt 0:02:20]} Be6 {[%emt 0:01:54] B85:
Sicilian Scheveningen: 6 Be2 a6, lines with early Be3.} 15. Nd5 {[%emt 0:05:35]
} Bxd5 {[%emt 0:07:03]} 16. exd5 {[%emt 0:00:02]} Nd7 {[%emt 0:10:22] The
position is equal.} 17. Bd4 {[%emt 0:02:29]} Ne5 {[%emt 0:07:50]} (17... Rae8 {
feels hotter.} 18. Bd3 g6 19. Qg4 Ne5) 18. a5 {[%emt 0:10:58][%cal Yc2c4] [#]}
g6 $146 {[%emt 0:06:08]} ({Predecessor:} 18... f5 19. c4 Bg5 20. Rf1 g6 21. Ra3
Bf6 22. b4 Rae8 23. Bb6 Qf7 24. c5 Nd7 25. c6 Nb8 26. b5 Re5 27. c7 Nd7 28.
bxa6 Rxe2 29. Qxe2 Qxd5 30. Rd1 {1-0 (30) Pernutz,H (2193)-Berresheim,H (2195)
Germany 2002}) 19. Bb6 {[%emt 0:03:19] This bishop pair is nice.} Qd7 {[%emt 0:
00:00]} 20. c4 {[%emt 0:00:17]} Bg5 {[%emt 0:06:48]} 21. Rf1 {[%emt 0:03:03]}
Rac8 {[%emt 0:03:02]} 22. Qd4 {[%emt 0:06:31]} Qe7 {[%emt 0:04:47]} 23. Rae1 {
[%emt 0:06:18]} Bh4 {[%emt 0:07:01]} 24. g3 {[%emt 0:02:49]} Bf6 {[%emt 0:00:
00]} 25. Qf4 {[%emt 0:01:42]} Bg7 {[%emt 0:05:51]} 26. b4 {[%emt 0:05:16]} Qd7
{[%emt 0:02:26]} 27. Rd1 {[%emt 0:03:44]} Qa4 {[%emt 0:12:37]} 28. c5 {[%emt 0:
00:00]} Nd7 {[%emt 0:01:28]} 29. Bf3 {[%emt 0:24:44]} ({Much worse is} 29. Qxd6
Rce8 30. c6 Nxb6 $17) (29. cxd6 Be5 30. Qg5 f6 $15) 29... Be5 {[%emt 0:02:57]}
30. Qh4 {[%emt 0:02:13]} Qb5 {[%emt 0:05:11]} 31. Rfe1 {[%emt 0:01:35]} Bc3 {
[%emt 0:01:54]} 32. Re4 {[%emt 0:00:33]} Nxb6 {[%emt 0:05:49]} 33. cxb6 {
[%emt 0:00:21]} (33. Be2 $15 Nc4 34. Rxc4) 33... Rfe8 $17 {[%emt 0:01:08]} 34.
Rf4 $2 {[%emt 0:00:35] [#]} (34. Re7 $17) 34... Be5 {[%emt 0:00:41]} (34... Bd2
$1 $19 35. Rf6 (35. Rxf7 $2 Kxf7 36. Qxh7+ Kf6 $19) (35. Re4 Rxe4) 35... Rc4)
35. Re4 {[%emt 0:00:23]} Rc2 {[%emt 0:00:42] Against Be2. Strongly threatening
...Rf2.} 36. Qh6 {[%emt 0:00:26]} (36. Bg2 $17) 36... Rf2 {[%emt 0:00:00]} (
36... f5 $19 37. Ree1 Qxb4) 37. Qe3 {[%emt 0:00:28] [#]} Rb2 {[%emt 0:00:00]
Threatens to win with ...f5.} (37... Rf1+ 38. Kg2 Rxd1 39. Bxd1 $15) 38. Be2 {
[%emt 0:00:44]} Qa4 {[%emt 0:00:36] White must now prevent ...f5.} 39. Rf1 {
[%emt 0:00:29] White does not recover from this.} (39. Rc1 $17) 39... Rxb4 {
[%emt 0:00:45]} (39... f5 $142 40. Rc4 Bf6) 40. Rxb4 {[%emt 0:00:00]} Qxb4 {
[%emt 0:00:07]} 41. Qf2 {[%emt 0:09:36]} Re7 {[%emt 0:02:44]} 42. Bd3 {[%emt 0:
04:20]} Qxa5 {[%emt 0:02:53]} 43. Be4 {[%emt 0:00:20]} Qb4 {[%emt 0:02:57]} 44.
Qc2 {[%emt 0:05:07]} Qxb6 {[%emt 0:04:41] Black is clearly winning.} 45. Rb1 {
[%emt 0:00:17]} Qe3 {[%emt 0:01:56]} 46. Bg2 {[%emt 0:00:26]} Bd4 {[%emt 0:02:
19]} 47. Qc8+ {[%emt 0:00:09]} Kg7 {[%emt 0:00:40]} 48. Rf1 {[%emt 0:00:04]}
Qd2 {[%emt 0:02:16] Hoping for ...Re1.} 49. h4 {[%emt 0:03:15]} Re1 {[%emt 0:
02:08]} 50. Rxe1 {[%emt 0:00:06]} Qxe1+ {[%emt 0:00:26]} 51. Kh2 {[%emt 0:00:
00]} Be5 {[%emt 0:01:51] Weighted Error Value: White=0.54/Black=0.16 (very
precise)} 0-1

[Event "44th Chess Olympiad Women 2022"]
[Site "Chennai"]
[Date "2022.08.05"]
[Round "7.10"]
[White "Karavade, Eesha"]
[Black "Georgescu, Lena"]
[Result "1-0"]
[WhiteElo "2339"]
[BlackElo "2279"]
[Annotator "TA"]
[PlyCount "67"]
[EventDate "2022.??.??"]
[TimeControl "60"]

{[%evp 17,67,18,17,19,21,18,18,23,21,20,70,44,51,56,70,66,75,74,80,72,82,35,35,
35,33,25,22,4,83,87,118,69,84,55,72,28,35,37,66,68,76,77,109,18,61,54,158,123,
797,768,692,637]} 1. d4 {[%emt 0:00:17]} Nf6 {[%emt 0:00:05]} 2. c4 {[%emt 0:
00:00]} e6 {[%emt 0:00:03]} 3. g3 {[%emt 0:00:20]} d5 {[%emt 0:00:06]} 4. Bg2 {
[%emt 0:00:24]} Bb4+ {[%emt 0:00:07]} 5. Nd2 {[%emt 0:00:24]} O-O {[%emt 0:00:
00]} 6. Ngf3 {[%emt 0:00:25]} b6 {[%emt 0:00:06]} 7. O-O {[%emt 0:00:35]} Bb7 {
[%emt 0:00:10]} 8. a3 {[%emt 0:00:10]} Be7 {[%emt 0:02:23]} 9. cxd5 $1 {
[%emt 0:01:22] 9.cxd5 is better than 9.b4.} exd5 {[%emt 0:04:57]} 10. b4 {
[%emt 0:03:41] E16: Queen's Indian: 4 g3 Bb7 5 Bg2 Bb4+.} c6 {[%emt 0:09:49]}
11. Bb2 {[%emt 0:02:09]} a5 {[%emt 0:01:02] [#]} 12. Qb3 $146 {[%emt 0:05:33]
The position is equal.} ({Predecessor:} 12. bxa5 Rxa5 13. a4 Nbd7 14. Ne5 Qa8
15. Bh3 Rd8 16. Qb3 Ra6 17. Rfc1 c5 18. Nxd7 Nxd7 19. dxc5 Nxc5 {½-½ (57)
Gupta,A (2645)-Sebenik,M (2534) Chess.com INT 2017}) 12... Nbd7 {[%emt 0:03:41]
} 13. Ne5 {[%emt 0:03:38]} Nxe5 {[%emt 0:09:27]} (13... axb4 $11 14. axb4 b5)
14. dxe5 $14 {[%emt 0:01:32]} Nd7 {[%emt 0:00:06]} 15. e4 {[%emt 0:15:35]} d4 {
[%emt 0:16:24]} 16. Bxd4 {[%emt 0:08:30]} axb4 {[%emt 0:13:33]} 17. axb4 {
[%emt 0:00:10]} Nxe5 {[%emt 0:00:31]} 18. Rxa8 {[%emt 0:04:05]} Bxa8 {[%emt 0:
00:00]} 19. Bxe5 {[%emt 0:10:02]} (19. Qc3 $1 $16 Bxb4 20. Qxb4) 19... Qxd2 {
[%emt 0:00:04]} 20. Bc3 {[%emt 0:00:06]} Qd7 {[%emt 0:02:40]} 21. Rd1 {[%emt 0:
00:00]} Qc8 {[%emt 0:01:39]} 22. e5 {[%emt 0:09:06] Black should prevent Ra1.}
Rd8 {[%emt 0:09:15]} (22... c5 $11) 23. Rxd8+ $16 {[%emt 0:01:06]} Bxd8 {
[%emt 0:00:04] [#]} 24. Qc4 {[%emt 0:02:18]} (24. e6 $1 $16 {Threatens to win
with Bh3.} fxe6 25. b5) 24... Bb7 {[%emt 0:06:46]} 25. h4 {[%emt 0:03:11][%cal
Ye5e6] White is more active.} Be7 {[%emt 0:03:06]} 26. Qe4 {[%emt 0:02:15]
[%cal Yb4b5] b5! is the strong threat.} (26. e6 $5 {[%cal Re6f7]} f6 27. h5 $14
) 26... b5 $1 {[%emt 0:02:47]} 27. Kh2 {[%emt 0:05:51]} Qe6 {[%emt 0:01:15]}
28. Bh3 {[%emt 0:09:00]} Qa2 {[%emt 0:06:33]} 29. Qd4 {[%emt 0:01:10][%cal
Ye5e6] And now e6! would win.} Bf8 {[%emt 0:01:30] [#]} 30. Bg2 {[%emt 0:03:03]
} (30. Bd2 $1 $16) 30... Qe6 {[%emt 0:03:19][%cal Yc6c5]} 31. Qb6 $36 {[%emt 0:
00:00] Prevents c5. White has some pressure.} Qc4 {[%emt 0:01:33]} ({Better is
} 31... Qd7 $14) 32. Bd2 {[%emt 0:00:52]} ({Much less strong is} 32. Qxb7 $6
Qxc3 33. f4 (33. Bxc6 Qxe5 34. Bxb5 Qe1 $11) 33... Bxb4 $14) 32... Qc2 $2 {
[%emt 0:01:10]} (32... Bc8 $16) 33. Be3 $18 {[%emt 0:00:17]} ({Less strong is} 
33. Qxb7 Qxd2 34. f4 (34. Qxc6 Qxf2 35. Qxb5 Qe1 $11) 34... Qe2 $14) 33... Bc8
{[%emt 0:00:45]} 34. Qd8 {[%emt 0:00:33] Weighted Error Value: White=0.17 
(very precise) /Black=0.23 (precise)} 1-0